[Event "*** Titled Tuesday Blitz"]
[Site "Chess.com"]
[Date "2021.03.09"]
[Round "6"]
[White "imdvb6307"]
[Black "MaevskiyNikolay"]
[Result "0-1"]
[WhiteElo "2372"]
[BlackElo "2520"]
[TimeControl "180+1"]
[EndTime "11:11:57 PST"]
[Termination "MaevskiyNikolay won on time"]

1. c4 {[%clk 0:03:00.9]} 1... a5 {[%clk 0:02:58.7]} 2. Nf3 {[%clk 0:02:52.3]}
2... e6 {[%clk 0:02:58.4]} 3. g3 {[%clk 0:02:51.2]} 3... a4 {[%clk 0:02:58.2]}
4. Bg2 {[%clk 0:02:50.7]} 4... Nf6 {[%clk 0:02:58]} 5. O-O {[%clk 0:02:48]} 5...
d5 {[%clk 0:02:53.9]} 6. d4 {[%clk 0:02:39.7]} 6... Nbd7 {[%clk 0:02:42]} 7. c5
{[%clk 0:02:27.8]} 7... c6 {[%clk 0:02:40.5]} 8. Nc3 {[%clk 0:02:23.8]} 8... b5
{[%clk 0:02:39.6]} 9. cxb6 {[%clk 0:02:14.4]} 9... Nxb6 {[%clk 0:02:39.1]} 10.
Ne5 {[%clk 0:02:11.6]} 10... Bb7 {[%clk 0:02:39.1]} 11. Nd3 {[%clk 0:02:11.1]}
11... a3 {[%clk 0:02:33.5]} 12. b3 {[%clk 0:02:09.8]} 12... Nbd7 {[%clk
0:02:30.5]} 13. Na4 {[%clk 0:02:08.7]} 13... Bd6 {[%clk 0:02:26.7]} 14. Bf4
{[%clk 0:02:07.2]} 14... Be7 {[%clk 0:02:21.6]} 15. Rc1 {[%clk 0:02:01.4]} 15...
O-O {[%clk 0:02:21.5]} 16. Ndc5 {[%clk 0:01:51.8]} 16... Nxc5 {[%clk 0:02:20.6]}
17. Nxc5 {[%clk 0:01:51.2]} 17... Ba6 {[%clk 0:02:18]} 18. Rc2 {[%clk
0:01:41.1]} 18... Bb5 {[%clk 0:02:17.9]} 19. Qd2 {[%clk 0:01:41.2]} 19... h6
{[%clk 0:02:16.6]} 20. h3 {[%clk 0:01:36]} 20... Nd7 {[%clk 0:02:14.9]} 21. Nxd7
{[%clk 0:01:34.3]} 21... Qxd7 {[%clk 0:02:15.2]} 22. Rfc1 {[%clk 0:01:28]} 22...
Ra6 {[%clk 0:02:15.3]} 23. e4 {[%clk 0:01:26.3]} 23... Rd8 {[%clk 0:02:08.6]}
24. Be3 {[%clk 0:01:26]} 24... Rb8 {[%clk 0:01:59.6]} 25. e5 {[%clk 0:01:25.4]}
25... Raa8 {[%clk 0:01:57.5]} 26. f4 {[%clk 0:01:25.4]} 26... h5 {[%clk
0:01:49]} 27. Qe1 {[%clk 0:01:24.7]} 27... Rc8 {[%clk 0:01:47.7]} 28. Bd2 {[%clk
0:01:19.7]} 28... Qa7 {[%clk 0:01:45.1]} 29. Be3 {[%clk 0:01:13.7]} 29... Kf8
{[%clk 0:01:45]} 30. Bf3 {[%clk 0:01:07.5]} 30... g6 {[%clk 0:01:44.4]} 31. g4
{[%clk 0:01:05]} 31... hxg4 {[%clk 0:01:44.6]} 32. hxg4 {[%clk 0:01:04.8]} 32...
Ke8 {[%clk 0:01:45]} 33. Rh2 {[%clk 0:01:04.3]} 33... Kd7 {[%clk 0:01:44.1]} 34.
Qf2 {[%clk 0:01:03.1]} 34... Rh8 {[%clk 0:01:43.1]} 35. f5 {[%clk 0:00:59]}
35... gxf5 {[%clk 0:01:42.7]} 36. gxf5 {[%clk 0:00:58.4]} 36... Rag8+ {[%clk
0:01:42.2]} 37. Kh1 {[%clk 0:00:58.6]} 37... Bb4 {[%clk 0:01:32.7]} 38. Rg1
{[%clk 0:00:46.6]} 38... Bd3 {[%clk 0:01:27.4]} 39. f6 {[%clk 0:00:43.2]} 39...
Bg6 {[%clk 0:01:11.1]} 40. Rg2 {[%clk 0:00:35.8]} 40... Qb8 {[%clk 0:01:07.5]}
41. Kg1 {[%clk 0:00:30.6]} 41... c5 {[%clk 0:01:01.5]} 42. Rxh8 {[%clk
0:00:24.1]} 42... Rxh8 {[%clk 0:01:01.1]} 43. Rh2 {[%clk 0:00:24.3]} 43... Rg8
{[%clk 0:01:00.3]} 44. Rg2 {[%clk 0:00:24.4]} 44... cxd4 {[%clk 0:00:58.2]} 45.
Bxd4 {[%clk 0:00:23.9]} 45... Qc7 {[%clk 0:00:58.4]} 46. Qe3 {[%clk 0:00:21.8]}
46... Rc8 {[%clk 0:00:55.1]} 47. Rxg6 {[%clk 0:00:17.6]} 47... Qc1+ {[%clk
0:00:51.2]} 48. Qxc1 {[%clk 0:00:16.9]} 48... Rxc1+ {[%clk 0:00:50.8]} 49. Kf2
{[%clk 0:00:15.9]} 49... fxg6 {[%clk 0:00:51.1]} 50. Be2 {[%clk 0:00:14.3]}
50... Bc5 {[%clk 0:00:45.7]} 51. Bxc5 {[%clk 0:00:13.2]} 51... Rxc5 {[%clk
0:00:45.6]} 52. Bd3 {[%clk 0:00:13]} 52... g5 {[%clk 0:00:46.1]} 53. Bg6 {[%clk
0:00:11.8]} 53... Rc3 {[%clk 0:00:44.9]} 54. Ke2 {[%clk 0:00:11.1]} 54... g4
{[%clk 0:00:44.7]} 55. Kd2 {[%clk 0:00:08]} 55... Rf3 {[%clk 0:00:44.4]} 56. Ke2
{[%clk 0:00:08.1]} 56... d4 {[%clk 0:00:41.6]} 57. b4 {[%clk 0:00:08]} 57...
Re3+ {[%clk 0:00:41.2]} 58. Kd2 {[%clk 0:00:06.4]} 58... Rxe5 {[%clk 0:00:40.3]}
59. Kd3 {[%clk 0:00:06.6]} 59... Rg5 {[%clk 0:00:38.4]} 60. Be4 {[%clk 0:00:06]}
60... e5 {[%clk 0:00:38]} 61. b5 {[%clk 0:00:05.5]} 61... Ke6 {[%clk 0:00:34.2]}
62. b6 {[%clk 0:00:03.1]} 62... Kxf6 {[%clk 0:00:30.7]} 63. Bd5 {[%clk
0:00:03.3]} 63... e4+ {[%clk 0:00:25.4]} 64. Kxe4 {[%clk 0:00:03.4]} 64... Re5+
{[%clk 0:00:24.8]} 65. Kxd4 {[%clk 0:00:03.4]} 65... g3 {[%clk 0:00:23.7]} 66.
b7 {[%clk 0:00:01.7]} 66... Re8 {[%clk 0:00:23.7]} 67. Kc5 {[%clk 0:00:01.4]}
67... Ke5 {[%clk 0:00:23.5]} 0-1

[Event "*** Titled Tuesday Blitz"]
[Site "Chess.com"]
[Date "2021.03.09"]
[Round "6"]
[White "Grieve72"]
[Black "CraiggoryC"]
[Result "0-1"]
[WhiteElo "2523"]
[BlackElo "2309"]
[TimeControl "180+1"]
[EndTime "11:12:02 PST"]
[Termination "CraiggoryC won on time"]

1. e4 {[%clk 0:03:00.9]} 1... d5 {[%clk 0:03:00]} 2. exd5 {[%clk 0:02:56.2]}
2... Nf6 {[%clk 0:03:00.6]} 3. d4 {[%clk 0:02:55.1]} 3... Bg4 {[%clk 0:03:00]}
4. Bb5+ {[%clk 0:02:54.6]} 4... Nbd7 {[%clk 0:02:58.7]} 5. Be2 {[%clk
0:02:54.7]} 5... Bxe2 {[%clk 0:02:55.3]} 6. Qxe2 {[%clk 0:02:55.6]} 6... Nxd5
{[%clk 0:02:52.1]} 7. Nf3 {[%clk 0:02:56]} 7... e6 {[%clk 0:02:51]} 8. O-O
{[%clk 0:02:56]} 8... Be7 {[%clk 0:02:51]} 9. c4 {[%clk 0:02:55.7]} 9... N5f6
{[%clk 0:02:48.7]} 10. Nc3 {[%clk 0:02:56.1]} 10... O-O {[%clk 0:02:48.5]} 11.
Bf4 {[%clk 0:02:50.9]} 11... c5 {[%clk 0:02:38.7]} 12. d5 {[%clk 0:02:49.7]}
12... exd5 {[%clk 0:02:38.8]} 13. cxd5 {[%clk 0:02:46.2]} 13... Re8 {[%clk
0:02:38.5]} 14. Qd3 {[%clk 0:02:36]} 14... c4 {[%clk 0:02:24.3]} 15. Qd2 {[%clk
0:02:31.8]} 15... Bc5 {[%clk 0:02:18]} 16. Nb5 {[%clk 0:02:22.1]} 16... Rc8
{[%clk 0:02:07.2]} 17. Rad1 {[%clk 0:02:14.7]} 17... a6 {[%clk 0:01:57.1]} 18.
Nc3 {[%clk 0:02:14.7]} 18... b5 {[%clk 0:01:56.9]} 19. d6 {[%clk 0:02:02.4]}
19... Qb6 {[%clk 0:01:51]} 20. Qc2 {[%clk 0:01:37.7]} 20... Rc6 {[%clk
0:01:31.4]} 21. Rfe1 {[%clk 0:00:21.3]} 21... Bxd6 {[%clk 0:01:29.4]} 22. Be3
{[%clk 0:00:13.1]} 22... Bc5 {[%clk 0:01:19.7]} 23. Qf5 {[%clk 0:00:13.5]} 23...
Bxe3 {[%clk 0:01:10.3]} 24. fxe3 {[%clk 0:00:13.6]} 24... Rxe3 {[%clk
0:01:06.7]} 25. Kf1 {[%clk 0:00:14.1]} 25... Rce6 {[%clk 0:00:51.4]} 26. Rxe3
{[%clk 0:00:14.3]} 26... Qxe3 {[%clk 0:00:46.7]} 27. h3 {[%clk 0:00:03.8]} 27...
g6 {[%clk 0:00:34.2]} 28. Qg5 {[%clk 0:00:01.8]} 28... Nc5 {[%clk 0:00:18.7]}
29. Qxe3 {[%clk 0:00:01.8]} 29... Rxe3 {[%clk 0:00:18.4]} 30. Kf2 {[%clk
0:00:02.7]} 30... Re8 {[%clk 0:00:10.5]} 31. Ne1 {[%clk 0:00:02.8]} 31... Nfe4+
{[%clk 0:00:09.1]} 32. Kf3 {[%clk 0:00:02.7]} 32... Nxc3 {[%clk 0:00:08.8]} 33.
bxc3 {[%clk 0:00:03.6]} 33... Kg7 {[%clk 0:00:06.6]} 34. a3 {[%clk 0:00:02.5]}
34... Na4 {[%clk 0:00:06.6]} 35. Rc1 {[%clk 0:00:02]} 35... Rd8 {[%clk
0:00:04.8]} 36. Ke4 {[%clk 0:00:01.4]} 36... Rd2 {[%clk 0:00:04.7]} 37. Nf3
{[%clk 0:00:01.6]} 37... Rxg2 {[%clk 0:00:04.3]} 38. Ne5 {[%clk 0:00:02.1]}
38... Re2+ {[%clk 0:00:04]} 39. Kd4 {[%clk 0:00:02.7]} 39... Nb2 {[%clk
0:00:03.1]} 40. Nd7 {[%clk 0:00:01.9]} 40... Rd2+ {[%clk 0:00:02.4]} 41. Kc5
{[%clk 0:00:01.8]} 41... Rxd7 {[%clk 0:00:02.9]} 42. Kc6 {[%clk 0:00:01.5]}
42... Re7 {[%clk 0:00:03.2]} 43. Rc2 {[%clk 0:00:01.9]} 43... Nd3 {[%clk
0:00:02.3]} 44. Kb6 {[%clk 0:00:02.2]} 44... Re6+ {[%clk 0:00:03.2]} 45. Ka5
{[%clk 0:00:02.7]} 45... Ne5 {[%clk 0:00:03.5]} 46. a4 {[%clk 0:00:03]} 46...
Nd3 {[%clk 0:00:03.7]} 47. axb5 {[%clk 0:00:02.8]} 47... axb5 {[%clk 0:00:04.6]}
48. Kxb5 {[%clk 0:00:03.7]} 48... Ne5 {[%clk 0:00:05]} 49. Re2 {[%clk
0:00:03.4]} 49... f6 {[%clk 0:00:05.5]} 50. h4 {[%clk 0:00:03.3]} 50... Kf7
{[%clk 0:00:05.6]} 51. Kc5 {[%clk 0:00:03.7]} 51... h6 {[%clk 0:00:05.9]} 52.
Kd5 {[%clk 0:00:04.2]} 52... g5 {[%clk 0:00:05.8]} 53. h5 {[%clk 0:00:04.2]}
53... f5 {[%clk 0:00:05.1]} 54. Rf2 {[%clk 0:00:03.3]} 54... Nd3 {[%clk
0:00:04.1]} 55. Ra2 {[%clk 0:00:04.2]} 55... Kf6 {[%clk 0:00:03.7]} 56. Ra8
{[%clk 0:00:04.2]} 56... Re5+ {[%clk 0:00:03.6]} 57. Kd6 {[%clk 0:00:04.3]}
57... Re6+ {[%clk 0:00:03.8]} 58. Kd7 {[%clk 0:00:04.8]} 58... Ne5+ {[%clk
0:00:03.9]} 59. Kc7 {[%clk 0:00:03.6]} 59... f4 {[%clk 0:00:04.4]} 60. Rf8+
{[%clk 0:00:03.3]} 60... Nf7 {[%clk 0:00:04.6]} 61. Rg8 {[%clk 0:00:01.6]} 61...
f3 {[%clk 0:00:04.7]} 62. Rg6+ {[%clk 0:00:02.1]} 62... Kf5 {[%clk 0:00:05.1]}
63. Rg7 {[%clk 0:00:02.9]} 63... Kf6 {[%clk 0:00:05]} 64. Rg6+ {[%clk 0:00:03]}
64... Kf5 {[%clk 0:00:05]} 65. Rg7 {[%clk 0:00:03.9]} 65... Re7+ {[%clk
0:00:05.3]} 66. Kc6 {[%clk 0:00:03.6]} 66... f2 {[%clk 0:00:05.5]} 67. Rxg5+
{[%clk 0:00:01.9]} 67... hxg5 {[%clk 0:00:04.9]} 0-1

[Event "*** Titled Tuesday Blitz"]
[Site "Chess.com"]
[Date "2021.03.09"]
[Round "6"]
[White "Mr_Sinigami"]
[Black "jens1102"]
[Result "0-1"]
[WhiteElo "2589"]
[BlackElo "2448"]
[TimeControl "180+1"]
[EndTime "11:12:04 PST"]
[Termination "jens1102 won by checkmate"]

1. d4 {[%clk 0:03:00.9]} 1... Nf6 {[%clk 0:03:00]} 2. Nf3 {[%clk 0:03:01.2]}
2... e6 {[%clk 0:03:00.2]} 3. Bf4 {[%clk 0:03:01.1]} 3... d5 {[%clk 0:02:59.6]}
4. e3 {[%clk 0:03:01.2]} 4... Bd6 {[%clk 0:03:00.3]} 5. Bg3 {[%clk 0:02:57.5]}
5... c5 {[%clk 0:03:00.3]} 6. Nbd2 {[%clk 0:02:56.8]} 6... Nc6 {[%clk
0:03:00.7]} 7. c3 {[%clk 0:02:56.7]} 7... Qe7 {[%clk 0:03:01.3]} 8. Ne5 {[%clk
0:02:54.9]} 8... O-O {[%clk 0:03:00.3]} 9. f4 {[%clk 0:02:49.7]} 9... Bd7 {[%clk
0:02:54.8]} 10. Bd3 {[%clk 0:02:47.8]} 10... Rfc8 {[%clk 0:02:52.3]} 11. Bh4
{[%clk 0:02:43.6]} 11... cxd4 {[%clk 0:02:39.6]} 12. exd4 {[%clk 0:02:42.7]}
12... Qe8 {[%clk 0:02:10.1]} 13. O-O {[%clk 0:01:54]} 13... Be7 {[%clk
0:02:05.8]} 14. Rf3 {[%clk 0:01:53.2]} 14... b5 {[%clk 0:01:48.2]} 15. a3 {[%clk
0:01:10.5]} 15... a5 {[%clk 0:01:46.4]} 16. Bxf6 {[%clk 0:01:06.2]} 16... Bxf6
{[%clk 0:01:44]} 17. Nxd7 {[%clk 0:01:05.8]} 17... Qxd7 {[%clk 0:01:41.8]} 18.
Bxb5 {[%clk 0:01:05.8]} 18... Rab8 {[%clk 0:01:36.3]} 19. a4 {[%clk 0:01:05.6]}
19... Qd6 {[%clk 0:01:32.7]} 20. Ra2 {[%clk 0:01:02.8]} 20... Ne7 {[%clk
0:01:23.5]} 21. Bd3 {[%clk 0:01:00.5]} 21... Rb6 {[%clk 0:01:16.3]} 22. Rf2
{[%clk 0:00:56.7]} 22... Rcb8 {[%clk 0:01:13.6]} 23. Qc2 {[%clk 0:00:56.7]}
23... g6 {[%clk 0:01:10.9]} 24. g3 {[%clk 0:00:56.8]} 24... Nc6 {[%clk
0:01:04.3]} 25. Nf3 {[%clk 0:00:55.3]} 25... Rc8 {[%clk 0:01:03.8]} 26. Qe2
{[%clk 0:00:53.9]} 26... Bg7 {[%clk 0:00:42.9]} 27. Kg2 {[%clk 0:00:51.9]} 27...
f6 {[%clk 0:00:42]} 28. Bb5 {[%clk 0:00:46.5]} 28... Re8 {[%clk 0:00:38.1]} 29.
Ra1 {[%clk 0:00:42.2]} 29... Re7 {[%clk 0:00:34.4]} 30. Re1 {[%clk 0:00:41.4]}
30... Na7 {[%clk 0:00:32.9]} 31. Bd3 {[%clk 0:00:35.1]} 31... Nc6 {[%clk
0:00:32.8]} 32. Qd2 {[%clk 0:00:32.7]} 32... Nd8 {[%clk 0:00:33]} 33. h4 {[%clk
0:00:30.4]} 33... Nf7 {[%clk 0:00:33]} 34. h5 {[%clk 0:00:28.9]} 34... Reb7
{[%clk 0:00:31.9]} 35. hxg6 {[%clk 0:00:27.9]} 35... hxg6 {[%clk 0:00:32.3]} 36.
Bxg6 {[%clk 0:00:27]} 36... Nh6 {[%clk 0:00:32.2]} 37. Rfe2 {[%clk 0:00:14.9]}
37... Qb8 {[%clk 0:00:25.7]} 38. Rb1 {[%clk 0:00:06.5]} 38... Ng4 {[%clk
0:00:14.7]} 39. Bd3 {[%clk 0:00:06.3]} 39... f5 {[%clk 0:00:14.7]} 40. Bb5
{[%clk 0:00:06.1]} 40... Re7 {[%clk 0:00:13.9]} 41. Rbe1 {[%clk 0:00:06.2]}
41... Qd6 {[%clk 0:00:13.4]} 42. b3 {[%clk 0:00:06.2]} 42... Nf6 {[%clk
0:00:13.6]} 43. c4 {[%clk 0:00:06.2]} 43... Ne4 {[%clk 0:00:14.1]} 44. Rxe4
{[%clk 0:00:03.8]} 44... dxe4 {[%clk 0:00:13.7]} 45. c5 {[%clk 0:00:04.2]} 45...
exf3+ {[%clk 0:00:13.4]} 46. Kf2 {[%clk 0:00:04.7]} 46... Qxd4+ {[%clk
0:00:13.4]} 47. Qxd4 {[%clk 0:00:04.5]} 47... Bxd4+ {[%clk 0:00:14.3]} 48. Kxf3
{[%clk 0:00:05.4]} 48... Bxc5 {[%clk 0:00:14.9]} 49. Re5 {[%clk 0:00:05.5]}
49... Bd4 {[%clk 0:00:14.8]} 50. Re2 {[%clk 0:00:05.1]} 50... Kf7 {[%clk
0:00:15.1]} 51. Bc4 {[%clk 0:00:05.4]} 51... Kf6 {[%clk 0:00:15.1]} 52. Rh2
{[%clk 0:00:05.3]} 52... Kg6 {[%clk 0:00:15.1]} 53. Rd2 {[%clk 0:00:05]} 53...
e5 {[%clk 0:00:14.9]} 54. fxe5 {[%clk 0:00:04.8]} 54... Bxe5 {[%clk 0:00:15.8]}
55. Rd5 {[%clk 0:00:05.2]} 55... Rd6 {[%clk 0:00:15.6]} 56. Rxa5 {[%clk
0:00:04.8]} 56... Rd4 {[%clk 0:00:12.9]} 57. Ra8 {[%clk 0:00:04.6]} 57... Rd1
{[%clk 0:00:12.6]} 58. a5 {[%clk 0:00:04.3]} 58... Bd4 {[%clk 0:00:10.3]} 59. a6
{[%clk 0:00:04]} 59... Rd2 {[%clk 0:00:10]} 60. g4 {[%clk 0:00:02.8]} 60... Rf2+
{[%clk 0:00:08.6]} 61. Kg3 {[%clk 0:00:03.1]} 61... f4+ {[%clk 0:00:09.4]} 62.
Kh3 {[%clk 0:00:01.9]} 62... Rh7# {[%clk 0:00:09.1]} 0-1

[Event "*** Titled Tuesday Blitz"]
[Site "Chess.com"]
[Date "2021.03.09"]
[Round "6"]
[White "FMLorneTwitch"]
[Black "bylavochka"]
[Result "1/2-1/2"]
[WhiteElo "2331"]
[BlackElo "2216"]
[TimeControl "180+1"]
[EndTime "11:12:07 PST"]
[Termination "Game drawn by repetition"]

1. d4 {[%clk 0:03:00.9]} 1... Nf6 {[%clk 0:02:59.7]} 2. Bg5 {[%clk 0:03:00]}
2... e6 {[%clk 0:02:58.5]} 3. c4 {[%clk 0:02:57.5]} 3... Be7 {[%clk 0:02:57]} 4.
Nc3 {[%clk 0:02:57.6]} 4... d5 {[%clk 0:02:57.2]} 5. Nf3 {[%clk 0:02:55.8]} 5...
Nbd7 {[%clk 0:02:53.1]} 6. e3 {[%clk 0:02:55.1]} 6... b6 {[%clk 0:02:51.8]} 7.
Rc1 {[%clk 0:02:50.6]} 7... Bb7 {[%clk 0:02:51.7]} 8. b3 {[%clk 0:02:48.9]} 8...
O-O {[%clk 0:02:51.5]} 9. Bd3 {[%clk 0:02:48.9]} 9... Rc8 {[%clk 0:02:43.5]} 10.
O-O {[%clk 0:02:47.8]} 10... c5 {[%clk 0:02:43.2]} 11. Qe2 {[%clk 0:02:41.5]}
11... Ne4 {[%clk 0:02:31.9]} 12. Bf4 {[%clk 0:02:30.5]} 12... Ndf6 {[%clk
0:02:15.9]} 13. Ne5 {[%clk 0:02:24.3]} 13... Nxc3 {[%clk 0:01:56.9]} 14. Rxc3
{[%clk 0:02:25.2]} 14... cxd4 {[%clk 0:01:55.3]} 15. exd4 {[%clk 0:02:20.8]}
15... dxc4 {[%clk 0:01:53.3]} 16. Rxc4 {[%clk 0:02:03.4]} 16... Rxc4 {[%clk
0:01:51.7]} 17. Bxc4 {[%clk 0:02:03.1]} 17... Qxd4 {[%clk 0:01:47.9]} 18. Bg3
{[%clk 0:02:01.6]} 18... Rd8 {[%clk 0:01:19.8]} 19. Nf3 {[%clk 0:01:49.7]} 19...
Qe4 {[%clk 0:01:16.1]} 20. Qb2 {[%clk 0:01:41.6]} 20... Bc5 {[%clk 0:00:53.4]}
21. Re1 {[%clk 0:01:37.3]} 21... Qf5 {[%clk 0:00:40.6]} 22. Ne5 {[%clk
0:01:24.2]} 22... Ne4 {[%clk 0:00:35.7]} 23. Qe2 {[%clk 0:01:18.6]} 23... Nxg3
{[%clk 0:00:27.1]} 24. hxg3 {[%clk 0:01:19.5]} 24... h6 {[%clk 0:00:21]} 25. a4
{[%clk 0:01:09.4]} 25... Bb4 {[%clk 0:00:15.7]} 26. Rf1 {[%clk 0:01:02.5]} 26...
Qe4 {[%clk 0:00:13.5]} 27. Qxe4 {[%clk 0:00:53.2]} 27... Bxe4 {[%clk 0:00:14.4]}
28. Nf3 {[%clk 0:00:49.1]} 28... Kf8 {[%clk 0:00:08.4]} 29. Rc1 {[%clk
0:00:46.1]} 29... Ke7 {[%clk 0:00:08]} 30. Kf1 {[%clk 0:00:43.7]} 30... Bd5
{[%clk 0:00:06.2]} 31. Ke2 {[%clk 0:00:40.3]} 31... Bxc4+ {[%clk 0:00:06.2]} 32.
Rxc4 {[%clk 0:00:40]} 32... Bd6 {[%clk 0:00:06.6]} 33. Nd2 {[%clk 0:00:35.5]}
33... Rd7 {[%clk 0:00:06.1]} 34. g4 {[%clk 0:00:34.6]} 34... Rc7 {[%clk
0:00:06.4]} 35. Rd4 {[%clk 0:00:33.4]} 35... e5 {[%clk 0:00:03.8]} 36. Re4
{[%clk 0:00:32.9]} 36... f6 {[%clk 0:00:03]} 37. f4 {[%clk 0:00:32]} 37... Kf7
{[%clk 0:00:01.6]} 38. Nc4 {[%clk 0:00:31.5]} 38... Bc5 {[%clk 0:00:01.6]} 39.
fxe5 {[%clk 0:00:31.5]} 39... fxe5 {[%clk 0:00:02]} 40. Nxe5+ {[%clk 0:00:32.2]}
40... Kf8 {[%clk 0:00:01.8]} 41. Ng6+ {[%clk 0:00:30.8]} 41... Kf7 {[%clk
0:00:02.2]} 42. Nf4 {[%clk 0:00:31.4]} 42... Re7 {[%clk 0:00:02.1]} 43. Kf3
{[%clk 0:00:30.1]} 43... Rxe4 {[%clk 0:00:02.1]} 44. Kxe4 {[%clk 0:00:31]} 44...
Kf6 {[%clk 0:00:02.6]} 45. Nh3 {[%clk 0:00:29.9]} 45... Bd6 {[%clk 0:00:01.9]}
46. Kd5 {[%clk 0:00:30]} 46... Bc5 {[%clk 0:00:02.3]} 47. Kc6 {[%clk 0:00:30.1]}
47... a5 {[%clk 0:00:02.7]} 48. Kd5 {[%clk 0:00:29.9]} 48... g6 {[%clk
0:00:01.6]} 49. Ke4 {[%clk 0:00:29.2]} 49... h5 {[%clk 0:00:02]} 50. gxh5 {[%clk
0:00:28.8]} 50... gxh5 {[%clk 0:00:02.9]} 51. Nf4 {[%clk 0:00:29.5]} 51... Kg5
{[%clk 0:00:02.8]} 52. Kf3 {[%clk 0:00:24.6]} 52... Bd6 {[%clk 0:00:01.8]} 53.
Nd5 {[%clk 0:00:23.9]} 53... Bc5 {[%clk 0:00:01.7]} 54. Nf4 {[%clk 0:00:22.7]}
54... Bd6 {[%clk 0:00:01.2]} 55. Ne6+ {[%clk 0:00:22.9]} 55... Kf5 {[%clk
0:00:01.5]} 56. Nd4+ {[%clk 0:00:23.1]} 56... Ke5 {[%clk 0:00:02]} 57. Nc2
{[%clk 0:00:22]} 57... Kd5 {[%clk 0:00:01.8]} 58. Ke3 {[%clk 0:00:21.1]} 58...
Bc5+ {[%clk 0:00:01.5]} 59. Kf4 {[%clk 0:00:20.9]} 59... Bf2 {[%clk 0:00:01.2]}
60. Kg5 {[%clk 0:00:20.6]} 60... h4 {[%clk 0:00:01.5]} 61. Kg4 {[%clk
0:00:21.1]} 61... Bg3 {[%clk 0:00:01.8]} 62. Kf3 {[%clk 0:00:21.1]} 62... Kc5
{[%clk 0:00:01.8]} 63. Ke3 {[%clk 0:00:20.7]} 63... b5 {[%clk 0:00:02.2]} 64.
Kd3 {[%clk 0:00:18.7]} 64... bxa4 {[%clk 0:00:02.5]} 65. bxa4 {[%clk 0:00:19.6]}
65... Kd5 {[%clk 0:00:02.5]} 66. Ne3+ {[%clk 0:00:19.1]} 66... Kc5 {[%clk
0:00:03]} 67. Nc2 {[%clk 0:00:19.3]} 67... Kd5 {[%clk 0:00:02.9]} 68. Kc3 {[%clk
0:00:18.2]} 68... Bf2 {[%clk 0:00:02.8]} 69. Kd3 {[%clk 0:00:17.5]} 69... Kc5
{[%clk 0:00:03.1]} 70. Kc3 {[%clk 0:00:16.9]} 70... Bg3 {[%clk 0:00:02.1]} 71.
Kd3 {[%clk 0:00:16.4]} 1/2-1/2